[Event "Late-Titled-Tuesday-Blitz-October-03-2023"]
[Site "Chess.com"]
[Date "2023.10.03"]
[Round "1"]
[White "HamedWafa4"]
[Black "IngOscarArdila"]
[Result "1-0"]
[WhiteElo "2617"]
[BlackElo "2315"]
[TimeControl "180+1"]
[EndTime "14:06:45 PDT"]
[Termination "HamedWafa4 won by resignation"]

1. e4 {[%clk 0:03:00.9]} 1... e5 {[%clk 0:02:55.1]} 2. Nf3 {[%clk 0:03:01.1]}
2... Nf6 {[%clk 0:02:54]} 3. Nc3 {[%clk 0:03:01]} 3... Nc6 {[%clk 0:02:48.9]} 4.
Bb5 {[%clk 0:02:59.2]} 4... Bb4 {[%clk 0:02:48.2]} 5. O-O {[%clk 0:02:55.6]}
5... O-O {[%clk 0:02:47.3]} 6. Bxc6 {[%clk 0:02:54]} 6... bxc6 {[%clk
0:02:46.6]} 7. Nxe5 {[%clk 0:02:49.3]} 7... Re8 {[%clk 0:02:39.2]} 8. Nd3 {[%clk
0:02:41.4]} 8... Bxc3 {[%clk 0:02:38.9]} 9. dxc3 {[%clk 0:02:40.8]} 9... Nxe4
{[%clk 0:02:39]} 10. Re1 {[%clk 0:02:36]} 10... d5 {[%clk 0:02:38.5]} 11. f3
{[%clk 0:02:35.2]} 11... Nd6 {[%clk 0:02:31.2]} 12. Bf4 {[%clk 0:02:29.3]} 12...
Bf5 {[%clk 0:02:29.4]} 13. Rxe8+ {[%clk 0:02:24.6]} 13... Qxe8 {[%clk
0:02:28.6]} 14. Ne5 {[%clk 0:02:22.1]} 14... f6 {[%clk 0:02:26.5]} 15. Nd3
{[%clk 0:02:20.2]} 15... Qe7 {[%clk 0:02:13]} 16. Qe1 {[%clk 0:02:13.2]} 16...
Re8 {[%clk 0:02:11.9]} 17. Qxe7 {[%clk 0:02:13]} 17... Rxe7 {[%clk 0:02:12.8]}
18. Kf2 {[%clk 0:02:13.5]} 18... Kf7 {[%clk 0:02:11.8]} 19. Nb4 {[%clk 0:02:10]}
19... Bd7 {[%clk 0:02:03.3]} 20. Re1 {[%clk 0:02:05]} 20... Rxe1 {[%clk
0:02:02.5]} 21. Kxe1 {[%clk 0:02:05.9]} 21... g5 {[%clk 0:02:00.6]} 22. Bg3
{[%clk 0:02:05.6]} 22... Ke7 {[%clk 0:01:57.4]} 23. a4 {[%clk 0:02:02.9]} 23...
a5 {[%clk 0:01:56.4]} 24. Nd3 {[%clk 0:02:02.3]} 24... Nc4 {[%clk 0:01:54.9]}
25. b3 {[%clk 0:02:01.2]} 25... Nd6 {[%clk 0:01:54.4]} 26. b4 {[%clk 0:01:58.3]}
26... axb4 {[%clk 0:01:42.1]} 27. cxb4 {[%clk 0:01:59.2]} 27... Kd8 {[%clk
0:01:42.1]} 28. Nc5 {[%clk 0:01:55.9]} 28... Bc8 {[%clk 0:01:36.8]} 29. a5
{[%clk 0:01:52.9]} 29... Nb7 {[%clk 0:01:37.2]} 30. Nb3 {[%clk 0:01:48.7]} 30...
Nd6 {[%clk 0:01:31.9]} 31. Kd2 {[%clk 0:01:41.2]} 31... Ba6 {[%clk 0:01:31.8]}
32. Kc3 {[%clk 0:01:40.3]} 32... Bf1 {[%clk 0:01:17.9]} 33. Nd4 {[%clk
0:01:32.5]} 33... Bxg2 {[%clk 0:01:07.1]} 34. Bxd6 {[%clk 0:01:26]} 34... cxd6
{[%clk 0:01:06]} 35. Nxc6+ {[%clk 0:01:26.7]} 35... Kc7 {[%clk 0:01:06.3]} 36.
Nd4 {[%clk 0:01:27.4]} 36... h5 {[%clk 0:01:00.8]} 37. b5 {[%clk 0:01:26.4]}
37... Bf1 {[%clk 0:01:01.3]} 38. Kb4 {[%clk 0:01:25.6]} 38... g4 {[%clk
0:00:59.7]} 39. fxg4 {[%clk 0:01:24.5]} 39... hxg4 {[%clk 0:01:00.6]} 40. b6+
{[%clk 0:01:14.9]} 40... Kb7 {[%clk 0:01:00.8]} 41. Nb5 {[%clk 0:01:15.3]} 41...
Kc6 {[%clk 0:00:51]} 42. Nd4+ {[%clk 0:01:15.4]} 42... Kb7 {[%clk 0:00:51]} 43.
Nf5 {[%clk 0:01:13]} 43... Kc6 {[%clk 0:00:48.8]} 44. Ne7+ {[%clk 0:01:13.2]}
44... Kb7 {[%clk 0:00:47.5]} 45. Nxd5 {[%clk 0:01:13.8]} 45... f5 {[%clk
0:00:48.1]} 46. Ne3 {[%clk 0:01:13.8]} 46... Be2 {[%clk 0:00:37.1]} 47. Nxf5
{[%clk 0:01:12.8]} 47... d5 {[%clk 0:00:37.6]} 48. Nd4 {[%clk 0:01:11.6]} 48...
Bd1 {[%clk 0:00:36.8]} 49. c3 {[%clk 0:01:11.5]} 49... Ka6 {[%clk 0:00:35.9]}
50. Kc5 {[%clk 0:01:11.1]} 50... Bf3 {[%clk 0:00:32.2]} 51. Kc6 {[%clk
0:01:10.6]} 51... Bd1 {[%clk 0:00:27.2]} 52. b7 {[%clk 0:01:09.5]} 52... Ba4+
{[%clk 0:00:24.7]} 53. Kc7 {[%clk 0:01:09.6]} 1-0

[Event "Late-Titled-Tuesday-Blitz-October-03-2023"]
[Site "Chess.com"]
[Date "2023.10.03"]
[Round "1"]
[White "Defenstrator"]
[Black "Vaathi_Coming"]
[Result "0-1"]
[WhiteElo "2462"]
[BlackElo "2885"]
[TimeControl "180+1"]
[EndTime "14:06:49 PDT"]
[Termination "Vaathi_Coming won by resignation"]

1. e4 {[%clk 0:02:58.6]} 1... g6 {[%clk 0:02:59.5]} 2. d4 {[%clk 0:02:54.9]}
2... Bg7 {[%clk 0:02:59.6]} 3. Nf3 {[%clk 0:02:52.1]} 3... d6 {[%clk 0:02:59.3]}
4. Bc4 {[%clk 0:02:44.2]} 4... Nf6 {[%clk 0:02:58.9]} 5. Qe2 {[%clk 0:02:43.5]}
5... Nc6 {[%clk 0:02:57.6]} 6. e5 {[%clk 0:02:41.4]} 6... dxe5 {[%clk
0:02:54.1]} 7. dxe5 {[%clk 0:02:42]} 7... Ng4 {[%clk 0:02:54.3]} 8. e6 {[%clk
0:02:34.8]} 8... fxe6 {[%clk 0:02:49.6]} 9. Bxe6 {[%clk 0:02:14]} 9... Rf8
{[%clk 0:02:47.9]} 10. Ng5 {[%clk 0:01:45.4]} 10... Nd4 {[%clk 0:01:08.5]} 11.
Qxg4 {[%clk 0:01:39.4]} 11... Nxc2+ {[%clk 0:01:08.6]} 12. Ke2 {[%clk
0:01:22.5]} 12... Nd4+ {[%clk 0:00:56.5]} 13. Ke1 {[%clk 0:01:09.6]} 13... Nc2+
{[%clk 0:00:53.4]} 14. Ke2 {[%clk 0:01:09.4]} 14... Qd4 {[%clk 0:00:53.5]} 15.
Qg3 {[%clk 0:00:30.3]} 15... Bxe6 {[%clk 0:00:21.7]} 16. Nxe6 {[%clk 0:00:24.8]}
16... Qc4+ {[%clk 0:00:15.5]} 17. Kd2 {[%clk 0:00:15.1]} 17... Nxa1 {[%clk
0:00:10.2]} 18. Nxf8 {[%clk 0:00:08.7]} 18... O-O-O+ {[%clk 0:00:08.7]} 19. Ke3
{[%clk 0:00:08.7]} 19... Rd3+ {[%clk 0:00:06.2]} 0-1

[Event "Late-Titled-Tuesday-Blitz-October-03-2023"]
[Site "Chess.com"]
[Date "2023.10.03"]
[Round "1"]
[White "dedpihto_v_kozhanom_palto"]
[Black "YouShallNotPass001"]
[Result "1-0"]
[WhiteElo "2693"]
[BlackElo "2374"]
[TimeControl "180+1"]
[EndTime "14:06:55 PDT"]
[Termination "dedpihto_v_kozhanom_palto won by resignation"]

1. c4 {[%clk 0:02:58.3]} 1... Nf6 {[%clk 0:03:00.3]} 2. Nc3 {[%clk 0:02:58.1]}
2... e6 {[%clk 0:03:01.2]} 3. e4 {[%clk 0:02:58.2]} 3... d5 {[%clk 0:03:02.1]}
4. e5 {[%clk 0:02:58.8]} 4... Ne4 {[%clk 0:03:02.4]} 5. Nxe4 {[%clk 0:02:57.8]}
5... dxe4 {[%clk 0:03:03.3]} 6. Qg4 {[%clk 0:02:57.6]} 6... Qd4 {[%clk 0:02:38]}
7. Nf3 {[%clk 0:02:55.6]} 7... h5 {[%clk 0:02:38]} 8. Qf4 {[%clk 0:02:47.2]}
8... Qc5 {[%clk 0:02:08.6]} 9. Qxe4 {[%clk 0:02:45.9]} 9... Nc6 {[%clk
0:02:02.6]} 10. a3 {[%clk 0:02:42.5]} 10... Qb6 {[%clk 0:01:58.4]} 11. b4 {[%clk
0:02:32.3]} 11... a5 {[%clk 0:01:52.1]} 12. b5 {[%clk 0:02:21.1]} 12... Ne7
{[%clk 0:01:50]} 13. d4 {[%clk 0:02:17.8]} 13... c5 {[%clk 0:01:47.1]} 14. dxc5
{[%clk 0:02:00]} 14... Qxc5 {[%clk 0:01:48]} 15. Be3 {[%clk 0:02:00.1]} 15...
Qc7 {[%clk 0:01:47.7]} 16. Be2 {[%clk 0:01:41]} 16... Nf5 {[%clk 0:01:46.8]} 17.
O-O {[%clk 0:01:17.2]} 17... Nxe3 {[%clk 0:01:42.9]} 18. Qxe3 {[%clk 0:01:12.1]}
18... Be7 {[%clk 0:01:40.3]} 19. Rac1 {[%clk 0:01:07.9]} 19... b6 {[%clk
0:01:38.5]} 20. Nd4 {[%clk 0:01:07.9]} 20... Bb7 {[%clk 0:01:37.7]} 21. Bf3
{[%clk 0:01:05.3]} 21... Bc5 {[%clk 0:01:26.4]} 22. Bxb7 {[%clk 0:01:01.9]}
22... Qxb7 {[%clk 0:01:27.3]} 23. Rfd1 {[%clk 0:01:01.2]} 23... O-O-O {[%clk
0:01:21.3]} 24. Rd3 {[%clk 0:00:19]} 24... Rd7 {[%clk 0:00:28.1]} 25. Rcd1
{[%clk 0:00:19]} 25... Rhd8 {[%clk 0:00:27.9]} 26. Qf4 {[%clk 0:00:19.6]} 26...
Qc7 {[%clk 0:00:21.2]} 27. h4 {[%clk 0:00:17]} 27... f6 {[%clk 0:00:20.7]} 28.
Qe4 {[%clk 0:00:16.7]} 28... Qxe5 {[%clk 0:00:20.4]} 29. Qa8+ {[%clk 0:00:15.3]}
29... Qb8 {[%clk 0:00:19.2]} 30. Qxb8+ {[%clk 0:00:14]} 30... Kxb8 {[%clk
0:00:19.3]} 31. Nc6+ {[%clk 0:00:14.7]} 31... Kc7 {[%clk 0:00:19.8]} 32. Nxd8
{[%clk 0:00:14.9]} 32... Rxd3 {[%clk 0:00:19.7]} 33. Rxd3 {[%clk 0:00:15.8]} 1-0

[Event "Late-Titled-Tuesday-Blitz-October-03-2023"]
[Site "Chess.com"]
[Date "2023.10.03"]
[Round "1"]
[White "chessajedrezz2020"]
[Black "UK_23"]
[Result "1-0"]
[WhiteElo "2720"]
[BlackElo "2399"]
[TimeControl "180+1"]
[EndTime "14:07:00 PDT"]
[Termination "chessajedrezz2020 won by resignation"]

1. Nf3 {[%clk 0:02:59.4]} 1... d5 {[%clk 0:02:59.8]} 2. d4 {[%clk 0:02:58.6]}
2... Nf6 {[%clk 0:03:00.1]} 3. c4 {[%clk 0:02:58.5]} 3... e6 {[%clk 0:03:00.1]}
4. Nc3 {[%clk 0:02:58.4]} 4... Be7 {[%clk 0:03:00.2]} 5. e3 {[%clk 0:02:57.8]}
5... O-O {[%clk 0:03:00]} 6. Bd3 {[%clk 0:02:57.7]} 6... a6 {[%clk 0:02:59.9]}
7. c5 {[%clk 0:02:53.2]} 7... b6 {[%clk 0:02:59.6]} 8. cxb6 {[%clk 0:02:53.2]}
8... cxb6 {[%clk 0:02:59.2]} 9. O-O {[%clk 0:02:49.2]} 9... Bb7 {[%clk
0:02:59.4]} 10. b3 {[%clk 0:02:48.7]} 10... Nbd7 {[%clk 0:02:58.6]} 11. Bb2
{[%clk 0:02:48.7]} 11... Ne4 {[%clk 0:02:58.5]} 12. Rc1 {[%clk 0:02:41.4]} 12...
f5 {[%clk 0:02:56.9]} 13. Ne2 {[%clk 0:02:35.1]} 13... Bd6 {[%clk 0:02:55.4]}
14. Ne5 {[%clk 0:02:34.5]} 14... Nxe5 {[%clk 0:02:49.3]} 15. dxe5 {[%clk
0:02:34.7]} 15... Bc5 {[%clk 0:02:48.7]} 16. Nd4 {[%clk 0:02:30.7]} 16... Qe7
{[%clk 0:02:48.4]} 17. Rc2 {[%clk 0:02:24.5]} 17... f4 {[%clk 0:02:41.6]} 18.
exf4 {[%clk 0:01:59.7]} 18... Rxf4 {[%clk 0:02:42.5]} 19. g3 {[%clk 0:01:08.7]}
19... Rff8 {[%clk 0:02:08.4]} 20. Kg2 {[%clk 0:01:06.9]} 20... Rae8 {[%clk
0:01:58.9]} 21. h4 {[%clk 0:01:03.8]} 21... h6 {[%clk 0:01:22.5]} 22. Qg4 {[%clk
0:01:00.9]} 22... Qf7 {[%clk 0:01:18.1]} 23. f3 {[%clk 0:00:51.3]} 23... Bxd4
{[%clk 0:01:15.1]} 24. fxe4 {[%clk 0:00:27.7]} 24... Qd7 {[%clk 0:01:00.8]} 25.
Bxd4 {[%clk 0:00:12.1]} 25... dxe4 {[%clk 0:00:58.7]} 26. Be2 {[%clk 0:00:05]}
26... Qxd4 {[%clk 0:00:51.4]} 27. Rc7 {[%clk 0:00:02.9]} 27... e3+ {[%clk
0:00:50]} 28. Rxb7 {[%clk 0:00:02.5]} 28... Qxg4 {[%clk 0:00:50.2]} 29. Bxg4
{[%clk 0:00:02.2]} 29... b5 {[%clk 0:00:50.2]} 30. Re1 {[%clk 0:00:01.9]} 30...
Rf2+ {[%clk 0:00:47.8]} 31. Kh3 {[%clk 0:00:02.6]} 31... Rxa2 {[%clk 0:00:45.7]}
32. Rxe3 {[%clk 0:00:03]} 32... Rf8 {[%clk 0:00:46.4]} 33. Bxe6+ {[%clk
0:00:02.6]} 33... Kh8 {[%clk 0:00:47.1]} 34. h5 {[%clk 0:00:03.1]} 34... a5
{[%clk 0:00:38.4]} 35. Bd7 {[%clk 0:00:03.7]} 35... b4 {[%clk 0:00:34.9]} 36. e6
{[%clk 0:00:04.1]} 36... Rff2 {[%clk 0:00:32.8]} 37. e7 {[%clk 0:00:04.4]} 37...
Rh2+ {[%clk 0:00:33.1]} 38. Kg4 {[%clk 0:00:05]} 38... Kh7 {[%clk 0:00:30.8]}
39. e8=Q {[%clk 0:00:05.9]} 1-0

[Event "Late-Titled-Tuesday-Blitz-October-03-2023"]
[Site "Chess.com"]
[Date "2023.10.03"]
[Round "1"]
[White "LuisFSiles"]
[Black "Siemba"]
[Result "1-0"]
[WhiteElo "2290"]
[BlackElo "2571"]
[TimeControl "180+1"]
[EndTime "14:07:01 PDT"]
[Termination "LuisFSiles won on time"]

1. e4 {[%clk 0:03:00.9]} 1... c5 {[%clk 0:02:57.5]} 2. Nf3 {[%clk 0:03:00.7]}
2... d6 {[%clk 0:02:47.4]} 3. Bb5+ {[%clk 0:02:59.9]} 3... Bd7 {[%clk
0:02:41.5]} 4. Bxd7+ {[%clk 0:02:58.2]} 4... Nxd7 {[%clk 0:02:42.4]} 5. b3
{[%clk 0:02:53.5]} 5... e5 {[%clk 0:02:34.9]} 6. O-O {[%clk 0:02:47.9]} 6... g6
{[%clk 0:02:32.3]} 7. d3 {[%clk 0:02:40.6]} 7... Bg7 {[%clk 0:02:31.6]} 8. Nc3
{[%clk 0:02:40.3]} 8... Ngf6 {[%clk 0:02:30.4]} 9. Bg5 {[%clk 0:02:38.8]} 9...
h6 {[%clk 0:02:29.4]} 10. Bxf6 {[%clk 0:02:38.9]} 10... Nxf6 {[%clk 0:02:28.9]}
11. Nd2 {[%clk 0:02:38.4]} 11... a6 {[%clk 0:02:28.8]} 12. Nc4 {[%clk
0:02:37.6]} 12... b5 {[%clk 0:02:28.8]} 13. Ne3 {[%clk 0:02:37.7]} 13... O-O
{[%clk 0:02:27.3]} 14. Ncd5 {[%clk 0:02:37.5]} 14... Nxd5 {[%clk 0:02:27.3]} 15.
Nxd5 {[%clk 0:02:37.2]} 15... f5 {[%clk 0:02:28]} 16. c4 {[%clk 0:02:20.2]}
16... b4 {[%clk 0:02:25.4]} 17. a3 {[%clk 0:02:17.7]} 17... a5 {[%clk
0:02:24.4]} 18. axb4 {[%clk 0:02:11.2]} 18... axb4 {[%clk 0:02:25.3]} 19. Rxa8
{[%clk 0:02:11.2]} 19... Qxa8 {[%clk 0:02:24]} 20. exf5 {[%clk 0:02:10.9]} 20...
gxf5 {[%clk 0:02:16.5]} 21. Ne7+ {[%clk 0:02:07.6]} 21... Kh7 {[%clk 0:02:01.6]}
22. Qh5 {[%clk 0:02:07.2]} 22... Rf6 {[%clk 0:01:18.2]} 23. Nxf5 {[%clk
0:02:01.3]} 23... Rg6 {[%clk 0:01:18.4]} 24. Ng3 {[%clk 0:01:48.8]} 24... Rg5
{[%clk 0:00:58.9]} 25. Qf3 {[%clk 0:01:37.5]} 25... Qa2 {[%clk 0:00:14.3]} 26.
Qe4+ {[%clk 0:01:31.4]} 26... Kh8 {[%clk 0:00:12.9]} 27. h4 {[%clk 0:01:31.4]}
27... Rxg3 {[%clk 0:00:09.1]} 28. fxg3 {[%clk 0:01:31.5]} 28... Qxb3 {[%clk
0:00:08.8]} 29. Ra1 {[%clk 0:01:17.4]} 29... Kg8 {[%clk 0:00:09.3]} 30. Qg6
{[%clk 0:01:10.3]} 30... Qa3 {[%clk 0:00:07.7]} 31. Qe8+ {[%clk 0:00:59.5]}
31... Kh7 {[%clk 0:00:07.8]} 32. Rxa3 {[%clk 0:00:59.2]} 32... bxa3 {[%clk
0:00:08.5]} 33. Qa8 {[%clk 0:00:59.7]} 33... e4 {[%clk 0:00:08.7]} 34. Qxa3
{[%clk 0:00:58.5]} 34... e3 {[%clk 0:00:06.6]} 35. Kf1 {[%clk 0:00:57]} 35...
Be5 {[%clk 0:00:06.7]} 36. h5 {[%clk 0:00:52.9]} 36... Bxg3 {[%clk 0:00:05.8]}
37. Qa7+ {[%clk 0:00:49.6]} 37... Kg8 {[%clk 0:00:05.2]} 38. Ke2 {[%clk
0:00:49.8]} 38... Be5 {[%clk 0:00:04.4]} 39. Qe7 {[%clk 0:00:48.3]} 1-0

[Event "Late-Titled-Tuesday-Blitz-October-03-2023"]
[Site "Chess.com"]
[Date "2023.10.03"]
[Round "1"]
[White "Maestro1986"]
[Black "Doudou2015"]
[Result "1-0"]
[WhiteElo "2539"]
[BlackElo "2154"]
[TimeControl "180+1"]
[EndTime "14:07:10 PDT"]
[Termination "Maestro1986 won by resignation"]

1. Nf3 {[%clk 0:02:59.8]} 1... d5 {[%clk 0:02:58.7]} 2. g3 {[%clk 0:03:00.2]}
2... Nf6 {[%clk 0:02:58.8]} 3. Bg2 {[%clk 0:03:01.1]} 3... Bf5 {[%clk
0:02:55.8]} 4. O-O {[%clk 0:03:02]} 4... Qc8 {[%clk 0:02:53.5]} 5. c4 {[%clk
0:02:57.1]} 5... dxc4 {[%clk 0:02:47]} 6. Qa4+ {[%clk 0:02:54.6]} 6... c6 {[%clk
0:02:42.3]} 7. Qxc4 {[%clk 0:02:39.5]} 7... Nbd7 {[%clk 0:02:34.7]} 8. d4 {[%clk
0:02:32.8]} 8... Nb6 {[%clk 0:02:34.2]} 9. Qb3 {[%clk 0:02:32.6]} 9... Be6
{[%clk 0:02:27.3]} 10. Qc2 {[%clk 0:02:27.5]} 10... Bh3 {[%clk 0:02:27.2]} 11.
Nc3 {[%clk 0:02:26.1]} 11... h5 {[%clk 0:02:25.3]} 12. Bg5 {[%clk 0:02:21.4]}
12... Bxg2 {[%clk 0:02:20.3]} 13. Kxg2 {[%clk 0:02:21.5]} 13... e6 {[%clk
0:02:14.7]} 14. Bxf6 {[%clk 0:02:18.8]} 14... gxf6 {[%clk 0:02:14.2]} 15. h4
{[%clk 0:02:18.9]} 15... f5 {[%clk 0:02:03.2]} 16. e4 {[%clk 0:02:15.7]} 16...
f4 {[%clk 0:01:57.6]} 17. Ng5 {[%clk 0:01:58.6]} 17... Nc4 {[%clk 0:01:51.3]}
18. e5 {[%clk 0:01:53.1]} 18... fxg3 {[%clk 0:01:50.3]} 19. Nce4 {[%clk
0:01:47]} 19... b5 {[%clk 0:01:36.3]} 20. b3 {[%clk 0:01:40.1]} 20... Nb6 {[%clk
0:01:29.1]} 21. Nf6+ {[%clk 0:01:34.5]} 21... Ke7 {[%clk 0:01:29]} 22. Qc5+
{[%clk 0:01:28.2]} 22... Kd8 {[%clk 0:01:19.3]} 23. Nxf7+ {[%clk 0:01:27.9]}
23... Kc7 {[%clk 0:01:20.2]} 24. Nd6 {[%clk 0:01:23.2]} 24... Bxd6 {[%clk
0:01:05.3]} 25. exd6+ {[%clk 0:01:17.9]} 25... Kb7 {[%clk 0:01:03.8]} 26. fxg3
{[%clk 0:01:14.2]} 26... Qd8 {[%clk 0:00:52.9]} 27. Rac1 {[%clk 0:01:07.9]}
27... Rc8 {[%clk 0:00:51.5]} 28. Ne4 {[%clk 0:01:01.5]} 28... Nd7 {[%clk
0:00:42.6]} 29. Qg5 {[%clk 0:00:59.3]} 29... Qxg5 {[%clk 0:00:20]} 30. Nxg5
{[%clk 0:00:58.7]} 30... Nf8 {[%clk 0:00:18.4]} 31. Rf7+ {[%clk 0:00:57.6]}
31... Kb6 {[%clk 0:00:18.7]} 32. Rcf1 {[%clk 0:00:42.6]} 32... Ng6 {[%clk
0:00:17.5]} 33. R1f6 {[%clk 0:00:40.2]} 33... Nf8 {[%clk 0:00:16.6]} 34. d7
{[%clk 0:00:37]} 34... Rd8 {[%clk 0:00:16.5]} 35. Nxe6 {[%clk 0:00:37.2]} 35...
Nxe6 {[%clk 0:00:16]} 36. Rxe6 {[%clk 0:00:37.3]} 36... Rhg8 {[%clk 0:00:14.9]}
37. d5 {[%clk 0:00:37]} 37... Kc5 {[%clk 0:00:13.3]} 38. dxc6 {[%clk 0:00:35.6]}
38... Kb6 {[%clk 0:00:12.8]} 39. Rfe7 {[%clk 0:00:34]} 39... Kc7 {[%clk
0:00:12.5]} 40. Re8 {[%clk 0:00:33.2]} 40... a6 {[%clk 0:00:10.4]} 41. Rxg8
{[%clk 0:00:32.8]} 41... Rxg8 {[%clk 0:00:10.5]} 42. Re8 {[%clk 0:00:33]} 1-0

[Event "Late-Titled-Tuesday-Blitz-October-03-2023"]
[Site "Chess.com"]
[Date "2023.10.03"]
[Round "1"]
[White "ArmanGhevondyanchess"]
[Black "Verony64"]
[Result "1/2-1/2"]
[WhiteElo "2556"]
[BlackElo "2229"]
[TimeControl "180+1"]
[EndTime "14:07:11 PDT"]
[Termination "Game drawn by stalemate"]

1. Nf3 {[%clk 0:03:00.9]} 1... d6 {[%clk 0:02:59.7]} 2. d4 {[%clk 0:03:01.1]}
2... Nd7 {[%clk 0:02:58.6]} 3. g3 {[%clk 0:03:01.1]} 3... c6 {[%clk 0:02:59.1]}
4. Bg2 {[%clk 0:03:01.5]} 4... e5 {[%clk 0:02:59.7]} 5. O-O {[%clk 0:03:00.3]}
5... f5 {[%clk 0:02:59.8]} 6. c4 {[%clk 0:02:59.5]} 6... Ngf6 {[%clk 0:02:59.8]}
7. Nc3 {[%clk 0:02:59.1]} 7... Be7 {[%clk 0:02:59.8]} 8. e4 {[%clk 0:02:55.6]}
8... fxe4 {[%clk 0:02:58.7]} 9. Ng5 {[%clk 0:02:55.5]} 9... Nb6 {[%clk
0:02:43.1]} 10. c5 {[%clk 0:02:55.3]} 10... Nbd5 {[%clk 0:02:42.3]} 11. cxd6
{[%clk 0:02:42.7]} 11... Bxd6 {[%clk 0:02:38.2]} 12. Ncxe4 {[%clk 0:02:40.1]}
12... O-O {[%clk 0:02:31.9]} 13. Nxf6+ {[%clk 0:02:19.7]} 13... Nxf6 {[%clk
0:02:11.8]} 14. Qb3+ {[%clk 0:02:15.9]} 14... Kh8 {[%clk 0:02:06.1]} 15. Nf7+
{[%clk 0:02:12.2]} 15... Rxf7 {[%clk 0:02:06.5]} 16. Qxf7 {[%clk 0:02:12]} 16...
exd4 {[%clk 0:02:05.2]} 17. Bg5 {[%clk 0:02:10.7]} 17... Bf5 {[%clk 0:01:56.5]}
18. Rfe1 {[%clk 0:02:06.2]} 18... Bg6 {[%clk 0:01:52.1]} 19. Qb3 {[%clk
0:02:05.2]} 19... Rb8 {[%clk 0:01:25]} 20. Qa4 {[%clk 0:02:00.7]} 20... d3
{[%clk 0:01:18.9]} 21. Rad1 {[%clk 0:01:57.1]} 21... Bc5 {[%clk 0:01:13.7]} 22.
Be3 {[%clk 0:01:50.2]} 22... Qb6 {[%clk 0:00:48.6]} 23. Qf4 {[%clk 0:01:43.3]}
23... Rf8 {[%clk 0:00:43.4]} 24. h4 {[%clk 0:01:35.3]} 24... Bxe3 {[%clk
0:00:41.4]} 25. Qxe3 {[%clk 0:01:31.7]} 25... Qxb2 {[%clk 0:00:39.8]} 26. Qc5
{[%clk 0:01:25.5]} 26... Rg8 {[%clk 0:00:32.4]} 27. Bf3 {[%clk 0:01:23.9]} 27...
Qxa2 {[%clk 0:00:23.5]} 28. Re7 {[%clk 0:01:23.5]} 28... Qc2 {[%clk 0:00:16.7]}
29. h5 {[%clk 0:01:20.9]} 29... Qxc5 {[%clk 0:00:14.3]} 30. Rxb7 {[%clk
0:01:13.7]} 30... Be4 {[%clk 0:00:13.2]} 31. Bg2 {[%clk 0:01:04.4]} 31... Qc2
{[%clk 0:00:12.9]} 32. Rbb1 {[%clk 0:01:03.3]} 32... Bxg2 {[%clk 0:00:12.8]} 33.
Kxg2 {[%clk 0:01:04.2]} 33... d2 {[%clk 0:00:12.9]} 34. Ra1 {[%clk 0:01:04.1]}
34... Qe4+ {[%clk 0:00:13.1]} 35. f3 {[%clk 0:01:03.5]} 35... Qe2+ {[%clk
0:00:13.2]} 36. Kh3 {[%clk 0:01:03.6]} 36... Nxh5 {[%clk 0:00:13.5]} 37. Kg4
{[%clk 0:01:02.2]} 37... g6 {[%clk 0:00:12.8]} 38. Rh1 {[%clk 0:00:59]} 38...
Qe6+ {[%clk 0:00:13.4]} 39. Kh4 {[%clk 0:00:57.1]} 39... Qf6+ {[%clk 0:00:14]}
40. Kg4 {[%clk 0:00:56.9]} 40... Qf5+ {[%clk 0:00:14.6]} 41. Kh4 {[%clk
0:00:57.4]} 41... Qxf3 {[%clk 0:00:14.9]} 42. Rhg1 {[%clk 0:00:55.2]} 42... Qf6+
{[%clk 0:00:14.5]} 43. Kh3 {[%clk 0:00:54.9]} 43... Re8 {[%clk 0:00:15.4]} 44.
Raf1 {[%clk 0:00:53.1]} 44... Qe6+ {[%clk 0:00:14.2]} 45. Kh4 {[%clk 0:00:52.7]}
45... Qe2 {[%clk 0:00:15.1]} 46. g4 {[%clk 0:00:47.4]} 46... Qh2+ {[%clk
0:00:14.2]} 47. Kg5 {[%clk 0:00:47.1]} 47... Re5+ {[%clk 0:00:14.9]} 48. Rf5
{[%clk 0:00:45.7]} 48... gxf5 {[%clk 0:00:14.8]} 49. gxf5 {[%clk 0:00:44.8]}
49... Qxg1+ {[%clk 0:00:15.7]} 50. Kh4 {[%clk 0:00:41.1]} 50... Re4+ {[%clk
0:00:15.8]} 51. Kxh5 {[%clk 0:00:40.9]} 51... Qg4+ {[%clk 0:00:15.7]} 52. Kh6
{[%clk 0:00:41.8]} 52... Qxf5 {[%clk 0:00:15.1]} 1/2-1/2

[Event "Late-Titled-Tuesday-Blitz-October-03-2023"]
[Site "Chess.com"]
[Date "2023.10.03"]
[Round "1"]
[White "Yushko_Olga"]
[Black "elmusmolamas"]
[Result "0-1"]
[WhiteElo "2109"]
[BlackElo "2533"]
[TimeControl "180+1"]
[EndTime "14:07:11 PDT"]
[Termination "elmusmolamas won by resignation"]

1. d4 {[%clk 0:02:59.8]} 1... d5 {[%clk 0:02:59.2]} 2. c4 {[%clk 0:02:59.6]}
2... c6 {[%clk 0:02:59.9]} 3. cxd5 {[%clk 0:02:59.8]} 3... cxd5 {[%clk
0:03:00.8]} 4. Nc3 {[%clk 0:02:59.8]} 4... Nf6 {[%clk 0:03:01.7]} 5. Nf3 {[%clk
0:03:00.7]} 5... Bf5 {[%clk 0:02:56.8]} 6. Bf4 {[%clk 0:02:59.8]} 6... e6 {[%clk
0:02:56.6]} 7. Qb3 {[%clk 0:02:47.4]} 7... Qb6 {[%clk 0:02:45.3]} 8. Qxb6 {[%clk
0:02:39.5]} 8... axb6 {[%clk 0:02:46.2]} 9. e3 {[%clk 0:02:38.7]} 9... Nc6
{[%clk 0:02:46.2]} 10. Be2 {[%clk 0:02:35.6]} 10... Be7 {[%clk 0:02:42.1]} 11.
O-O {[%clk 0:02:28.9]} 11... O-O {[%clk 0:02:42.8]} 12. Bc7 {[%clk 0:02:28.1]}
12... Nd7 {[%clk 0:02:42.4]} 13. Rfc1 {[%clk 0:02:20.3]} 13... Rfc8 {[%clk
0:02:42.5]} 14. Bg3 {[%clk 0:02:16.7]} 14... h6 {[%clk 0:02:42.9]} 15. a3 {[%clk
0:02:04.4]} 15... Na5 {[%clk 0:02:41.8]} 16. Nb5 {[%clk 0:01:59.5]} 16... Nb3
{[%clk 0:02:41.2]} 17. Rxc8+ {[%clk 0:01:55.6]} 17... Rxc8 {[%clk 0:02:42.1]}
18. Re1 {[%clk 0:01:53.6]} 18... Rc2 {[%clk 0:02:38.5]} 19. Bd6 {[%clk
0:01:29.1]} 19... Kf8 {[%clk 0:02:14.1]} 20. a4 {[%clk 0:00:56.6]} 20... Rxb2
{[%clk 0:02:07.6]} 21. Bd1 {[%clk 0:00:48.5]} 21... Na5 {[%clk 0:01:55.6]} 22.
Bc7 {[%clk 0:00:36.5]} 22... Bb4 {[%clk 0:01:51.6]} 23. Bd6+ {[%clk 0:00:32.5]}
23... Bxd6 {[%clk 0:01:44.1]} 24. Nxd6 {[%clk 0:00:32.1]} 24... Bh7 {[%clk
0:01:34.2]} 25. Be2 {[%clk 0:00:28.8]} 25... Ke7 {[%clk 0:01:29.4]} 26. Nc8+
{[%clk 0:00:23]} 26... Kd8 {[%clk 0:01:24.4]} 27. Nd6 {[%clk 0:00:23.1]} 27...
f6 {[%clk 0:01:24.2]} 28. Bb5 {[%clk 0:00:23]} 28... Rc2 {[%clk 0:01:01.4]} 29.
h3 {[%clk 0:00:23.1]} 29... Ke7 {[%clk 0:01:00.8]} 30. e4 {[%clk 0:00:17.2]}
30... Kxd6 {[%clk 0:00:59.3]} 31. e5+ {[%clk 0:00:17.2]} 31... fxe5 {[%clk
0:00:57.5]} 32. dxe5+ {[%clk 0:00:17.3]} 32... Ke7 {[%clk 0:00:55.7]} 33. Nd4
{[%clk 0:00:17.1]} 33... Rb2 {[%clk 0:00:52.2]} 34. Re3 {[%clk 0:00:15.4]} 34...
Nc4 {[%clk 0:00:45.5]} 35. Rg3 {[%clk 0:00:15.2]} 35... g5 {[%clk 0:00:45.5]}
36. f4 {[%clk 0:00:14.3]} 36... Nd2 {[%clk 0:00:35.5]} 37. fxg5 {[%clk
0:00:13.8]} 37... Rb1+ {[%clk 0:00:35.9]} 38. Kf2 {[%clk 0:00:12.7]} 38... Ne4+
{[%clk 0:00:35.9]} 39. Kf3 {[%clk 0:00:11.2]} 39... Nxg3 {[%clk 0:00:35.3]} 40.
Kxg3 {[%clk 0:00:10.9]} 40... hxg5 {[%clk 0:00:35.7]} 0-1